[Event "*** Titled Tuesday Blitz"]
[Site "Chess.com"]
[Date "2020.02.04"]
[Round "3"]
[White "Fortitudine"]
[Black "WeAintSurePal"]
[Result "0-1"]
[WhiteElo "2214"]
[BlackElo "2392"]
[TimeControl "180+2"]
[EndTime "13:37:10 PST"]
[Termination "WeAintSurePal won by resignation"]

1. d4 {[%clk 0:02:31.7]} 1... d5 {[%clk 0:02:58.7]} 2. Nc3 {[%clk 0:02:32.1]}
2... c6 {[%clk 0:02:59.9]} 3. e4 {[%clk 0:02:32.8]} 3... dxe4 {[%clk 0:03:01.3]}
4. Nxe4 {[%clk 0:02:34.7]} 4... Nf6 {[%clk 0:03:02.2]} 5. Nxf6+ {[%clk
0:02:36.1]} 5... exf6 {[%clk 0:03:04.1]} 6. c3 {[%clk 0:02:38]} 6... Bd6 {[%clk
0:03:05.5]} 7. Bd3 {[%clk 0:02:39.2]} 7... O-O {[%clk 0:03:06.8]} 8. Qh5 {[%clk
0:02:40.2]} 8... Re8+ {[%clk 0:02:59.2]} 9. Ne2 {[%clk 0:02:39.6]} 9... g6
{[%clk 0:03:00]} 10. Qh4 {[%clk 0:02:39.9]} 10... Nd7 {[%clk 0:02:49.9]} 11. O-O
{[%clk 0:02:39.3]} 11... Nf8 {[%clk 0:02:48.7]} 12. Bh6 {[%clk 0:02:24.4]} 12...
Be6 {[%clk 0:02:48.6]} 13. Ng3 {[%clk 0:02:11.2]} 13... f5 {[%clk 0:02:45.7]}
14. Bg5 {[%clk 0:02:07.2]} 14... Be7 {[%clk 0:02:46.3]} 15. Bxe7 {[%clk
0:02:07.1]} 15... Qxe7 {[%clk 0:02:48.2]} 16. Qxe7 {[%clk 0:02:07.5]} 16... Rxe7
{[%clk 0:02:50.1]} 17. Rfe1 {[%clk 0:02:01]} 17... Rae8 {[%clk 0:02:51.5]} 18.
f3 {[%clk 0:01:53.3]} 18... Nd7 {[%clk 0:02:47.9]} 19. Kf2 {[%clk 0:01:45.7]}
19... Nb6 {[%clk 0:02:49.1]} 20. Ne2 {[%clk 0:01:36.8]} 20... Bc4 {[%clk
0:02:48.7]} 21. Bxc4 {[%clk 0:01:26.4]} 21... Nxc4 {[%clk 0:02:50.6]} 22. b3
{[%clk 0:01:21.3]} 22... Nb6 {[%clk 0:02:49.3]} 23. Nf4 {[%clk 0:01:19.6]} 23...
Kg7 {[%clk 0:02:45.8]} 24. Rxe7 {[%clk 0:01:17.5]} 24... Rxe7 {[%clk 0:02:47.7]}
25. Re1 {[%clk 0:01:15.9]} 25... Rxe1 {[%clk 0:02:49.1]} 26. Kxe1 {[%clk
0:01:17.8]} 26... Kf6 {[%clk 0:02:50.5]} 27. Kd2 {[%clk 0:01:16.1]} 27... Ke7
{[%clk 0:02:51]} 28. c4 {[%clk 0:01:15]} 28... Nd7 {[%clk 0:02:50.8]} 29. a4
{[%clk 0:01:13.2]} 29... Kd6 {[%clk 0:02:51.4]} 30. b4 {[%clk 0:00:47.9]} 30...
Nf6 {[%clk 0:02:51.9]} 31. Kd3 {[%clk 0:00:44.6]} 31... g5 {[%clk 0:02:50.6]}
32. Ne2 {[%clk 0:00:45]} 32... f4 {[%clk 0:02:49.1]} 33. Nc3 {[%clk 0:00:45.3]}
33... b6 {[%clk 0:02:44.9]} 34. Ne4+ {[%clk 0:00:45.5]} 34... Nxe4 {[%clk
0:02:46.7]} 35. Kxe4 {[%clk 0:00:42.3]} 35... Ke6 {[%clk 0:02:47.6]} 36. d5+
{[%clk 0:00:37.7]} 36... cxd5+ {[%clk 0:02:46.8]} 37. cxd5+ {[%clk 0:00:39.6]}
37... Kd6 {[%clk 0:02:44]} 38. Kd4 {[%clk 0:00:11.8]} 38... a6 {[%clk
0:02:43.9]} 39. b5 {[%clk 0:00:07]} 39... axb5 {[%clk 0:02:43.7]} 40. axb5
{[%clk 0:00:07.8]} 40... f6 {[%clk 0:02:44.4]} 41. h3 {[%clk 0:00:05.1]} 41...
f5 {[%clk 0:02:40.8]} 42. h4 {[%clk 0:00:03.1]} 42... gxh4 {[%clk 0:02:41]} 43.
Kc4 {[%clk 0:00:04.3]} 43... Ke5 {[%clk 0:02:41.6]} 0-1

[Event "*** Titled Tuesday Blitz"]
[Site "Chess.com"]
[Date "2020.02.04"]
[Round "3"]
[White "Alexander_Moskalenko"]
[Black "Everyfishknows"]
[Result "1-0"]
[WhiteElo "2830"]
[BlackElo "2324"]
[TimeControl "180+2"]
[EndTime "13:37:14 PST"]
[Termination "Alexander_Moskalenko won by resignation"]

1. e4 {[%clk 0:02:54.3]} 1... e5 {[%clk 0:02:58.6]} 2. Nf3 {[%clk 0:02:54.8]}
2... Nc6 {[%clk 0:02:53.5]} 3. Bb5 {[%clk 0:02:51.1]} 3... a6 {[%clk 0:02:53.9]}
4. Bxc6 {[%clk 0:02:52]} 4... dxc6 {[%clk 0:02:54.6]} 5. Nc3 {[%clk 0:02:53.5]}
5... f6 {[%clk 0:02:25.7]} 6. d4 {[%clk 0:02:54.1]} 6... exd4 {[%clk 0:02:26.5]}
7. Nxd4 {[%clk 0:02:56]} 7... c5 {[%clk 0:02:27.2]} 8. Nde2 {[%clk 0:02:57.5]}
8... Qxd1+ {[%clk 0:02:28.3]} 9. Nxd1 {[%clk 0:02:59.4]} 9... Be6 {[%clk
0:02:26.5]} 10. Bf4 {[%clk 0:03:00.7]} 10... O-O-O {[%clk 0:02:27]} 11. Ne3
{[%clk 0:03:02.6]} 11... Ne7 {[%clk 0:02:09.6]} 12. Nc3 {[%clk 0:02:53.1]} 12...
Ng6 {[%clk 0:01:29]} 13. Bg3 {[%clk 0:02:53]} 13... h5 {[%clk 0:01:20.8]} 14. h4
{[%clk 0:02:49.3]} 14... Bd6 {[%clk 0:01:11.4]} 15. Bxd6 {[%clk 0:02:36.5]}
15... Rxd6 {[%clk 0:01:13.3]} 16. Rd1 {[%clk 0:02:33.3]} 16... Rhd8 {[%clk
0:01:13.3]} 17. Rxd6 {[%clk 0:02:30.6]} 17... Rxd6 {[%clk 0:01:15.2]} 18. f3
{[%clk 0:02:31.6]} 18... Ne5 {[%clk 0:01:03.4]} 19. Ke2 {[%clk 0:02:29.9]} 19...
Nc6 {[%clk 0:00:53.7]} 20. Rd1 {[%clk 0:02:27.9]} 20... Nd4+ {[%clk 0:00:53.2]}
21. Kf2 {[%clk 0:02:29.3]} 21... b5 {[%clk 0:00:43.3]} 22. a3 {[%clk 0:02:13.2]}
22... c6 {[%clk 0:00:36.4]} 23. Ne2 {[%clk 0:02:01.2]} 23... Kc7 {[%clk
0:00:32.3]} 24. c3 {[%clk 0:01:57.6]} 24... Nxe2 {[%clk 0:00:19.2]} 25. Rxd6
{[%clk 0:01:57.8]} 25... Kxd6 {[%clk 0:00:20.1]} 26. Kxe2 {[%clk 0:01:59.3]}
26... Ke5 {[%clk 0:00:17.9]} 27. g3 {[%clk 0:02:00]} 27... g5 {[%clk 0:00:18.4]}
28. Kf2 {[%clk 0:01:55.1]} 28... gxh4 {[%clk 0:00:07.9]} 29. gxh4 {[%clk
0:01:44.5]} 29... a5 {[%clk 0:00:06.9]} 30. Ng2 {[%clk 0:01:43.4]} 30... Bh3
{[%clk 0:00:06.2]} 31. Ne1 {[%clk 0:01:44.1]} 31... c4 {[%clk 0:00:05.6]} 32.
Ke3 {[%clk 0:01:42.5]} 32... Be6 {[%clk 0:00:04.3]} 33. f4+ {[%clk 0:01:43.4]}
33... Kd6 {[%clk 0:00:05.6]} 34. f5 {[%clk 0:01:43.4]} 34... Bf7 {[%clk
0:00:05.9]} 35. Kf4 {[%clk 0:01:44.7]} 35... c5 {[%clk 0:00:05.7]} 36. Nf3
{[%clk 0:01:45.4]} 36... b4 {[%clk 0:00:05.7]} 37. e5+ {[%clk 0:01:46.2]} 37...
fxe5+ {[%clk 0:00:06.9]} 38. Nxe5 {[%clk 0:01:48.1]} 38... Kd5 {[%clk
0:00:08.3]} 1-0

[Event "*** Titled Tuesday Blitz"]
[Site "Chess.com"]
[Date "2020.02.04"]
[Round "3"]
[White "MartinCerveny"]
[Black "wolfje95"]
[Result "1-0"]
[WhiteElo "2589"]
[BlackElo "2378"]
[TimeControl "180+2"]
[EndTime "13:37:22 PST"]
[Termination "MartinCerveny won by resignation"]

1. d4 {[%clk 0:03:01.9]} 1... d5 {[%clk 0:03:00]} 2. c4 {[%clk 0:03:02.7]} 2...
e6 {[%clk 0:03:01.5]} 3. Nc3 {[%clk 0:03:03]} 3... c6 {[%clk 0:03:02.9]} 4. e3
{[%clk 0:03:00.3]} 4... Nf6 {[%clk 0:03:02.9]} 5. Nf3 {[%clk 0:03:00.3]} 5...
Nbd7 {[%clk 0:03:04.3]} 6. Bd3 {[%clk 0:03:00.6]} 6... dxc4 {[%clk 0:03:03.3]}
7. Bxc4 {[%clk 0:03:02.5]} 7... b5 {[%clk 0:03:05]} 8. Bd3 {[%clk 0:03:03.4]}
8... a6 {[%clk 0:02:59.4]} 9. e4 {[%clk 0:03:00.9]} 9... c5 {[%clk 0:02:49.3]}
10. e5 {[%clk 0:02:58.6]} 10... Nd5 {[%clk 0:02:50]} 11. Nxd5 {[%clk 0:02:58.1]}
11... exd5 {[%clk 0:02:51.9]} 12. O-O {[%clk 0:02:58.6]} 12... Be7 {[%clk
0:02:46]} 13. Re1 {[%clk 0:02:51.9]} 13... O-O {[%clk 0:02:44.9]} 14. Bf4 {[%clk
0:02:43.9]} 14... cxd4 {[%clk 0:02:34.4]} 15. Qc2 {[%clk 0:02:29.8]} 15... h6
{[%clk 0:02:30.3]} 16. Qd2 {[%clk 0:02:30.3]} 16... Nc5 {[%clk 0:02:15.8]} 17.
Nxd4 {[%clk 0:02:19.4]} 17... Nxd3 {[%clk 0:02:13]} 18. Qxd3 {[%clk 0:02:19.8]}
18... Bb7 {[%clk 0:02:07]} 19. Re3 {[%clk 0:02:18.9]} 19... Bg5 {[%clk
0:02:00.7]} 20. Bxg5 {[%clk 0:02:16.3]} 20... Qxg5 {[%clk 0:02:02.6]} 21. Rae1
{[%clk 0:02:16.5]} 21... Rac8 {[%clk 0:01:56.2]} 22. e6 {[%clk 0:01:52.5]} 22...
Qf6 {[%clk 0:01:28.6]} 23. Rf3 {[%clk 0:01:48.8]} 23... Qg5 {[%clk 0:01:18.4]}
24. h3 {[%clk 0:01:39.8]} 24... Rc1 {[%clk 0:01:14.9]} 25. Rxc1 {[%clk
0:01:38.8]} 25... Qxc1+ {[%clk 0:01:16.8]} 26. Kh2 {[%clk 0:01:39.7]} 26... Qc7+
{[%clk 0:01:02.4]} 27. Rg3 {[%clk 0:01:33.7]} 27... Bc8 {[%clk 0:00:56.7]} 28.
Nf5 {[%clk 0:01:25.5]} 28... fxe6 {[%clk 0:00:42.9]} 29. Nxg7 {[%clk 0:01:14.3]}
29... Rxf2 {[%clk 0:00:26.3]} 30. Nxe6+ {[%clk 0:01:07.3]} 1-0

[Event "*** Titled Tuesday Blitz"]
[Site "Chess.com"]
[Date "2020.02.04"]
[Round "3"]
[White "ZenBull"]
[Black "Chesstrainer1"]
[Result "0-1"]
[WhiteElo "2107"]
[BlackElo "2369"]
[TimeControl "180+2"]
[EndTime "13:37:27 PST"]
[Termination "Chesstrainer1 won by resignation"]

1. Nf3 {[%clk 0:03:00.4]} 1... d6 {[%clk 0:02:55.3]} 2. d4 {[%clk 0:03:00.8]}
2... Nf6 {[%clk 0:02:52.6]} 3. c4 {[%clk 0:02:57]} 3... g6 {[%clk 0:02:53.3]} 4.
Nc3 {[%clk 0:02:57.9]} 4... Bg7 {[%clk 0:02:54.7]} 5. e4 {[%clk 0:02:58.7]} 5...
O-O {[%clk 0:02:56.1]} 6. h3 {[%clk 0:02:59.6]} 6... a6 {[%clk 0:02:55.7]} 7.
Bg5 {[%clk 0:02:58.8]} 7... c5 {[%clk 0:02:46.6]} 8. d5 {[%clk 0:02:58.2]} 8...
b5 {[%clk 0:02:42.1]} 9. cxb5 {[%clk 0:02:58.1]} 9... axb5 {[%clk 0:02:42.6]}
10. Bxb5 {[%clk 0:02:36.4]} 10... Nxe4 {[%clk 0:02:42.3]} 11. Nxe4 {[%clk
0:02:24.3]} 11... Qa5+ {[%clk 0:02:42.3]} 12. Nc3 {[%clk 0:02:21.1]} 12... Bxc3+
{[%clk 0:02:42.1]} 13. bxc3 {[%clk 0:02:21.8]} 13... Qxb5 {[%clk 0:02:44]} 14.
Qe2 {[%clk 0:02:08.8]} 14... Qxe2+ {[%clk 0:02:41.9]} 15. Kxe2 {[%clk 0:02:09]}
15... Ba6+ {[%clk 0:02:36]} 16. Kd2 {[%clk 0:02:08.1]} 16... f6 {[%clk
0:02:34.7]} 17. Bh6 {[%clk 0:01:53.4]} 17... Rc8 {[%clk 0:02:27.4]} 18. Kc2
{[%clk 0:01:45]} 18... Nd7 {[%clk 0:02:22.3]} 19. Nd2 {[%clk 0:01:39.2]} 19...
Nb6 {[%clk 0:02:19.2]} 20. Rhe1 {[%clk 0:01:32.8]} 20... Kf7 {[%clk 0:02:19.7]}
21. Be3 {[%clk 0:00:50.5]} 21... Nxd5 {[%clk 0:02:19]} 22. f4 {[%clk 0:00:40.1]}
22... Rc7 {[%clk 0:02:04]} 23. g3 {[%clk 0:00:37.3]} 23... h5 {[%clk 0:02:02.3]}
24. h4 {[%clk 0:00:36.3]} 24... Bc8 {[%clk 0:02:00.3]} 25. Bf2 {[%clk
0:00:35.4]} 25... Bf5+ {[%clk 0:01:58.6]} 26. Ne4 {[%clk 0:00:24.1]} 26... Rca7
{[%clk 0:01:52.8]} 27. Kb2 {[%clk 0:00:20.7]} 27... Bxe4 {[%clk 0:01:38.7]} 28.
Rxe4 {[%clk 0:00:20.6]} 28... Rxa2+ {[%clk 0:01:39.2]} 29. Rxa2 {[%clk
0:00:19.2]} 29... Rxa2+ {[%clk 0:01:40.6]} 30. Kxa2 {[%clk 0:00:15.8]} 30...
Nxc3+ {[%clk 0:01:41.5]} 31. Kb3 {[%clk 0:00:16.3]} 31... Nxe4 {[%clk
0:01:42.8]} 32. Be1 {[%clk 0:00:17.9]} 32... d5 {[%clk 0:01:41.4]} 33. Kc2
{[%clk 0:00:18.5]} 33... Ke6 {[%clk 0:01:42.2]} 34. Kd3 {[%clk 0:00:19.8]} 34...
Kf5 {[%clk 0:01:43.3]} 35. Ba5 {[%clk 0:00:16.5]} 35... Nxg3 {[%clk 0:01:37.8]}
36. Bd8 {[%clk 0:00:17.4]} 36... e6 {[%clk 0:01:38.2]} 37. Be7 {[%clk
0:00:16.7]} 37... Ne4 {[%clk 0:01:36.9]} 38. Ke3 {[%clk 0:00:16.6]} 38... Kg4
{[%clk 0:01:35.2]} 0-1

[Event "*** Titled Tuesday Blitz"]
[Site "Chess.com"]
[Date "2020.02.04"]
[Round "3"]
[White "DonBroca"]
[Black "SARGISMV"]
[Result "0-1"]
[WhiteElo "2165"]
[BlackElo "2381"]
[TimeControl "180+2"]
[EndTime "13:37:31 PST"]
[Termination "SARGISMV won by resignation"]

1. e4 {[%clk 0:00:24.9]} 1... c5 {[%clk 0:02:59.5]} 2. Nf3 {[%clk 0:00:24.8]}
2... Nc6 {[%clk 0:02:59.8]} 3. d4 {[%clk 0:00:26.7]} 3... cxd4 {[%clk
0:03:00.7]} 4. Nxd4 {[%clk 0:00:28.6]} 4... e5 {[%clk 0:03:01.6]} 5. Nb5 {[%clk
0:00:29.2]} 5... d6 {[%clk 0:03:01.3]} 6. N1c3 {[%clk 0:00:28.4]} 6... a6 {[%clk
0:02:59.5]} 7. Na3 {[%clk 0:00:27.6]} 7... b5 {[%clk 0:03:00]} 8. Nd5 {[%clk
0:00:27.9]} 8... Nce7 {[%clk 0:02:54.4]} 9. Ne3 {[%clk 0:00:22.5]} 9... f5
{[%clk 0:02:51.9]} 10. exf5 {[%clk 0:00:17.8]} 10... Nxf5 {[%clk 0:02:53.8]} 11.
Nxf5 {[%clk 0:00:17.4]} 11... Bxf5 {[%clk 0:02:53.9]} 12. Be3 {[%clk 0:00:16.8]}
12... Nf6 {[%clk 0:02:53.2]} 13. c3 {[%clk 0:00:17.4]} 13... d5 {[%clk
0:02:49.3]} 14. Bd3 {[%clk 0:00:16.9]} 14... Bxd3 {[%clk 0:02:47.3]} 15. Qxd3
{[%clk 0:00:18.8]} 15... Bxa3 {[%clk 0:02:49.2]} 16. bxa3 {[%clk 0:00:19.1]}
16... O-O {[%clk 0:02:50.5]} 17. O-O {[%clk 0:00:20.1]} 17... Qc7 {[%clk
0:02:44.6]} 18. Bg5 {[%clk 0:00:20.8]} 18... Rad8 {[%clk 0:02:41.2]} 19. Bxf6
{[%clk 0:00:21.2]} 19... Rxf6 {[%clk 0:02:40.9]} 20. Rad1 {[%clk 0:00:20.6]}
20... Rh6 {[%clk 0:02:34.5]} 21. Rfe1 {[%clk 0:00:21.1]} 21... Rg6 {[%clk
0:02:22.3]} 22. g3 {[%clk 0:00:20.6]} 22... Rc6 {[%clk 0:02:20.2]} 23. Qe3
{[%clk 0:00:20.7]} 23... e4 {[%clk 0:02:18.6]} 24. Rc1 {[%clk 0:00:20.7]} 24...
Rf6 {[%clk 0:02:13.4]} 25. Qd4 {[%clk 0:00:19.8]} 25... Rf3 {[%clk 0:02:09]} 26.
Re3 {[%clk 0:00:20.7]} 26... Rxe3 {[%clk 0:02:09]} 27. Qxe3 {[%clk 0:00:22.6]}
27... Qc4 {[%clk 0:02:09.1]} 28. Qd4 {[%clk 0:00:20]} 28... Qxa2 {[%clk
0:02:03.1]} 29. Qb4 {[%clk 0:00:20.6]} 29... Rf8 {[%clk 0:01:57.3]} 30. Rf1
{[%clk 0:00:21.3]} 30... h5 {[%clk 0:01:53.1]} 31. Qd6 {[%clk 0:00:22.2]} 31...
Rf6 {[%clk 0:01:47.9]} 32. Qd8+ {[%clk 0:00:22.1]} 32... Kh7 {[%clk 0:01:48.3]}
33. Qa5 {[%clk 0:00:22.4]} 33... h4 {[%clk 0:01:44.7]} 34. Qb4 {[%clk
0:00:22.6]} 34... h3 {[%clk 0:01:43.6]} 35. Qd4 {[%clk 0:00:23.4]} 35... Qe2
{[%clk 0:01:43.2]} 36. Qe5 {[%clk 0:00:23.7]} 36... Qf3 {[%clk 0:01:41.7]} 0-1

[Event "*** Titled Tuesday Blitz"]
[Site "Chess.com"]
[Date "2020.02.04"]
[Round "3"]
[White "Supernotar"]
[Black "Mikasinski"]
[Result "1-0"]
[WhiteElo "2548"]
[BlackElo "2240"]
[TimeControl "180+2"]
[EndTime "13:37:55 PST"]
[Termination "Supernotar won by resignation"]

1. d4 {[%clk 0:03:01.9]} 1... Nf6 {[%clk 0:03:00.6]} 2. c4 {[%clk 0:03:03.8]}
2... g6 {[%clk 0:03:00.7]} 3. Nc3 {[%clk 0:03:04.3]} 3... Bg7 {[%clk 0:03:01.9]}
4. e4 {[%clk 0:03:05]} 4... d6 {[%clk 0:03:03.5]} 5. Be2 {[%clk 0:03:05.7]} 5...
O-O {[%clk 0:03:05]} 6. Nf3 {[%clk 0:03:02.9]} 6... e5 {[%clk 0:03:06.1]} 7. O-O
{[%clk 0:03:03.4]} 7... Nc6 {[%clk 0:03:07.2]} 8. d5 {[%clk 0:03:04.4]} 8... Ne7
{[%clk 0:03:08.1]} 9. Ne1 {[%clk 0:03:05.5]} 9... Ne8 {[%clk 0:03:08.7]} 10. Be3
{[%clk 0:03:06.6]} 10... f5 {[%clk 0:03:10.4]} 11. f3 {[%clk 0:03:07.4]} 11...
Nf6 {[%clk 0:03:11.8]} 12. c5 {[%clk 0:03:07.6]} 12... f4 {[%clk 0:03:13.1]} 13.
Bf2 {[%clk 0:03:08.5]} 13... g5 {[%clk 0:03:14.2]} 14. a4 {[%clk 0:03:09.3]}
14... Ng6 {[%clk 0:03:14.9]} 15. a5 {[%clk 0:03:10.1]} 15... Rf7 {[%clk
0:03:13.6]} 16. cxd6 {[%clk 0:03:10.9]} 16... cxd6 {[%clk 0:03:14.7]} 17. Nb5
{[%clk 0:03:11.1]} 17... Bf8 {[%clk 0:03:08]} 18. Bxa7 {[%clk 0:03:11.2]} 18...
Bd7 {[%clk 0:03:08.7]} 19. Bb6 {[%clk 0:03:12]} 19... Qe7 {[%clk 0:03:09.9]} 20.
Nc7 {[%clk 0:03:12.8]} 20... Rc8 {[%clk 0:03:09.6]} 21. Rc1 {[%clk 0:03:10.5]}
21... Rg7 {[%clk 0:03:07.6]} 22. Ne6 {[%clk 0:03:08.7]} 22... Rxc1 {[%clk
0:03:05.3]} 23. Qxc1 {[%clk 0:03:09.3]} 23... Bxe6 {[%clk 0:03:01.7]} 24. dxe6
{[%clk 0:03:10.5]} 24... g4 {[%clk 0:03:02.1]} 25. Qc8 {[%clk 0:03:04.5]} 25...
Nh4 {[%clk 0:03:00.6]} 26. Bc4 {[%clk 0:02:05.4]} 26... d5 {[%clk 0:02:28.1]}
27. exd5 {[%clk 0:01:56.3]} 27... Nf5 {[%clk 0:02:28.1]} 28. Bd8 {[%clk
0:01:45.7]} 28... Qc5+ {[%clk 0:02:28.5]} 29. Qxc5 {[%clk 0:01:42.7]} 29...
Bxc5+ {[%clk 0:02:30.4]} 30. Kh1 {[%clk 0:01:42.6]} 30... Nh5 {[%clk 0:02:29.1]}
31. fxg4 {[%clk 0:01:10.9]} 31... Rxg4 {[%clk 0:02:23.2]} 32. Nf3 {[%clk
0:00:41]} 32... Rg6 {[%clk 0:01:34.7]} 33. Nh4 {[%clk 0:00:36.4]} 33... Rh6
{[%clk 0:01:10.5]} 34. Nxf5 {[%clk 0:00:36.2]} 34... Ng3+ {[%clk 0:01:07.3]} 35.
Nxg3 {[%clk 0:00:36.8]} 35... fxg3 {[%clk 0:01:09]} 36. h3 {[%clk 0:00:36]}
36... Kg7 {[%clk 0:00:39.6]} 37. e7 {[%clk 0:00:33.9]} 1-0

[Event "*** Titled Tuesday Blitz"]
[Site "Chess.com"]
[Date "2020.02.04"]
[Round "3"]
[White "VeraNebolsina"]
[Black "CzechmVIII"]
[Result "1/2-1/2"]
[WhiteElo "2372"]
[BlackElo "2188"]
[TimeControl "180+2"]
[EndTime "13:37:57 PST"]
[Termination "Game drawn by repetition"]

1. e4 {[%clk 0:03:01.9]} 1... c5 {[%clk 0:03:00.6]} 2. Nc3 {[%clk 0:02:58.2]}
2... Nc6 {[%clk 0:03:00.8]} 3. Bb5 {[%clk 0:02:56.5]} 3... Nd4 {[%clk
0:03:01.2]} 4. Nf3 {[%clk 0:02:56.7]} 4... a6 {[%clk 0:02:59.8]} 5. Bc4 {[%clk
0:02:55.9]} 5... e6 {[%clk 0:03:00.5]} 6. a4 {[%clk 0:02:56.3]} 6... g6 {[%clk
0:02:54.6]} 7. Nxd4 {[%clk 0:02:54.2]} 7... cxd4 {[%clk 0:02:55.3]} 8. Ne2
{[%clk 0:02:55.3]} 8... Bg7 {[%clk 0:02:56]} 9. c3 {[%clk 0:02:54.4]} 9... d5
{[%clk 0:02:39.7]} 10. exd5 {[%clk 0:02:54.9]} 10... exd5 {[%clk 0:02:40.9]} 11.
Ba2 {[%clk 0:02:56]} 11... d3 {[%clk 0:02:35.1]} 12. Nf4 {[%clk 0:02:51.5]}
12... Qe7+ {[%clk 0:02:09.3]} 13. Kf1 {[%clk 0:02:50]} 13... Nf6 {[%clk
0:02:10.4]} 14. Nxd3 {[%clk 0:02:36.6]} 14... O-O {[%clk 0:02:11.2]} 15. Nf4
{[%clk 0:02:36.2]} 15... d4 {[%clk 0:02:06.3]} 16. d3 {[%clk 0:02:29.9]} 16...
dxc3 {[%clk 0:02:00.1]} 17. bxc3 {[%clk 0:02:30.5]} 17... Ng4 {[%clk 0:01:47.1]}
18. h3 {[%clk 0:02:17]} 18... Bxc3 {[%clk 0:01:34.9]} 19. Ba3 {[%clk 0:02:10.4]}
19... Qe5 {[%clk 0:01:18]} 20. Bxf8 {[%clk 0:02:02.7]} 20... Nxf2 {[%clk
0:01:02.3]} 21. Kxf2 {[%clk 0:02:01.3]} 21... Qxf4+ {[%clk 0:01:00.5]} 22. Qf3
{[%clk 0:01:56.3]} 22... Bd4+ {[%clk 0:00:50.5]} 23. Ke2 {[%clk 0:01:53.9]}
23... Qxf3+ {[%clk 0:00:47.5]} 24. Kxf3 {[%clk 0:01:53.1]} 24... Bxa1 {[%clk
0:00:48.6]} 25. Rxa1 {[%clk 0:01:53.9]} 25... Kxf8 {[%clk 0:00:49.7]} 26. Rc1
{[%clk 0:01:42.1]} 26... Bd7 {[%clk 0:00:48.2]} 27. Rc7 {[%clk 0:01:39.8]} 27...
Bxa4 {[%clk 0:00:33.6]} 28. Rxf7+ {[%clk 0:01:39.9]} 28... Ke8 {[%clk
0:00:34.9]} 29. Rxh7 {[%clk 0:01:40.4]} 29... Rd8 {[%clk 0:00:31.1]} 30. Bf7+
{[%clk 0:01:36.7]} 30... Kf8 {[%clk 0:00:29.6]} 31. Bxg6 {[%clk 0:01:37.8]}
31... Bc6+ {[%clk 0:00:30.7]} 32. Be4 {[%clk 0:01:38.5]} 32... Bxe4+ {[%clk
0:00:24.5]} 33. dxe4 {[%clk 0:01:39.5]} 33... b5 {[%clk 0:00:21.4]} 34. Ra7
{[%clk 0:01:36.9]} 34... Rd6 {[%clk 0:00:22]} 35. e5 {[%clk 0:01:36.1]} 35...
Rb6 {[%clk 0:00:22.6]} 36. Ke4 {[%clk 0:01:01.1]} 36... b4 {[%clk 0:00:23.3]}
37. Kf5 {[%clk 0:00:59.2]} 37... b3 {[%clk 0:00:19.5]} 38. Ra8+ {[%clk 0:01:00]}
38... Ke7 {[%clk 0:00:19.6]} 39. Ra7+ {[%clk 0:01:00.9]} 39... Kf8 {[%clk
0:00:20.7]} 40. Ra8+ {[%clk 0:01:01.7]} 40... Ke7 {[%clk 0:00:21.6]} 41. Ra7+
{[%clk 0:01:03]} 41... Kf8 {[%clk 0:00:23]} 1/2-1/2

[Event "*** Titled Tuesday Blitz"]
[Site "Chess.com"]
[Date "2020.02.04"]
[Round "3"]
[White "Slovak_fighter2000"]
[Black "DiamondCrusher22"]
[Result "1-0"]
[WhiteElo "2518"]
[BlackElo "2005"]
[TimeControl "180+2"]
[EndTime "13:38:02 PST"]
[Termination "Slovak_fighter2000 won by resignation"]

1. d4 {[%clk 0:03:01.9]} 1... d5 {[%clk 0:02:59.9]} 2. c4 {[%clk 0:03:01.5]}
2... c6 {[%clk 0:03:00.2]} 3. Nf3 {[%clk 0:03:01.9]} 3... Nf6 {[%clk 0:03:00.7]}
4. Nc3 {[%clk 0:03:01.4]} 4... dxc4 {[%clk 0:03:01.4]} 5. a4 {[%clk 0:03:01.8]}
5... e6 {[%clk 0:03:00.7]} 6. e3 {[%clk 0:03:02.7]} 6... c5 {[%clk 0:02:57.8]}
7. Bxc4 {[%clk 0:02:59]} 7... Nc6 {[%clk 0:02:57.8]} 8. O-O {[%clk 0:02:58.6]}
8... Be7 {[%clk 0:02:57.2]} 9. Qe2 {[%clk 0:02:55.7]} 9... cxd4 {[%clk
0:02:57.5]} 10. Rd1 {[%clk 0:02:55.6]} 10... O-O {[%clk 0:02:58]} 11. exd4
{[%clk 0:02:55.8]} 11... Nb4 {[%clk 0:02:56.7]} 12. Bg5 {[%clk 0:02:55.5]} 12...
a6 {[%clk 0:02:56.2]} 13. Ne5 {[%clk 0:02:54.1]} 13... Nbd5 {[%clk 0:02:51.9]}
14. Rac1 {[%clk 0:02:45.9]} 14... Bd7 {[%clk 0:02:40.4]} 15. Nxd7 {[%clk
0:02:38.3]} 15... Qxd7 {[%clk 0:02:38.6]} 16. Nxd5 {[%clk 0:02:22.5]} 16... exd5
{[%clk 0:02:05.8]} 17. Bb3 {[%clk 0:02:14.7]} 17... Rfe8 {[%clk 0:02:06]} 18.
Qf3 {[%clk 0:02:14]} 18... Rad8 {[%clk 0:02:03.8]} 19. Bf4 {[%clk 0:02:10.7]}
19... Bd6 {[%clk 0:02:00.6]} 20. Bg5 {[%clk 0:02:08.9]} 20... Be7 {[%clk
0:02:01.3]} 21. h3 {[%clk 0:02:06.4]} 21... Ne4 {[%clk 0:01:53.8]} 22. Bf4
{[%clk 0:02:06]} 22... Bd6 {[%clk 0:01:47.3]} 23. Be3 {[%clk 0:01:58.1]} 23...
Bb8 {[%clk 0:01:38.2]} 24. Rc2 {[%clk 0:01:54.3]} 24... Re6 {[%clk 0:01:35.5]}
25. Rdc1 {[%clk 0:01:42]} 25... Rf6 {[%clk 0:01:32.9]} 26. Qg4 {[%clk 0:01:41]}
26... Qd6 {[%clk 0:01:31.8]} 27. g3 {[%clk 0:01:34.5]} 27... Rg6 {[%clk
0:01:30.9]} 28. Qh4 {[%clk 0:01:30.4]} 28... Re8 {[%clk 0:00:18.8]} 29. Rc8
{[%clk 0:01:27.8]} 29... Re6 {[%clk 0:00:14.3]} 30. Bf4 {[%clk 0:01:24]} 30...
Qd7 {[%clk 0:00:14.4]} 31. Rxb8 {[%clk 0:01:21.7]} 31... Rxb8 {[%clk 0:00:12.4]}
32. Bxb8 {[%clk 0:01:23.6]} 32... Rh6 {[%clk 0:00:12.8]} 33. Qg4 {[%clk
0:01:23]} 33... f5 {[%clk 0:00:13.6]} 34. Qf4 {[%clk 0:01:14.9]} 34... Rxh3
{[%clk 0:00:05.2]} 35. Qe5 {[%clk 0:01:08.2]} 35... Nf6 {[%clk 0:00:04.8]} 36.
Rc7 {[%clk 0:01:03.1]} 36... Qe8 {[%clk 0:00:02.9]} 1-0